bitfinex/quotes_BTCUSD_20230108
["timestamp","ask_amount","ask_price","bid_price","bid_amount"]
[1673139918733,2.36825972,16934.0,16933.0,0.6429938]
[1673139918734,0.57933172,16934.0,16933.0,0.6429938]
[1673139918986,0.31481662,16934.0,16933.0,0.6429938]
[1673139919256,0.13847112,16934.0,16933.0,1.2508678]
[1673139919801,0.13847112,16934.0,16933.0,1.8414298]
[1673139920012,0.13847112,16934.0,16933.0,2.6059918]
[1673139920289,0.07447112,16934.0,16933.0,3.2959918]
[1673139920579,0.1764655,16937.0,16934.0,0.464]
[1673139920580,0.00012,16937.0,16934.0,0.464]
[1673139920810,0.00012,16937.0,16936.0,0.3467]
[1673139921073,0.00012,16937.0,16936.0,1.544917]
[1673139921322,0.4408606,16939.0,16937.0,0.4]
[1673139921578,3.05418979,16940.0,16938.0,0.114451]
[1673139921848,0.18127469,16940.0,16938.0,0.17421073]
[1673139922842,0.00492919,16940.0,16938.0,0.17421073]
[1673139923363,0.005,16939.0,16938.0,0.76459473]
[1673139923705,0.00492919,16940.0,16939.0,0.65599847]
[1673139923868,0.43894019,16942.0,16939.0,0.77024847]
[1673139924136,0.43894019,16942.0,16940.0,1.182398]
[1673139924137,0.1566122,16942.0,16940.0,1.182398]
[1673139924393,0.1566122,16942.0,16940.0,0.5746]
[1673139924640,0.66520896,16943.0,16940.0,0.5746]
[1673139924890,0.40267427,16943.0,16940.0,0.1746]
[1673139925664,0.00267427,16943.0,16940.0,0.1746]
[1673139925902,0.00267427,16943.0,16942.0,0.1746]
[1673139926400,0.00267427,16943.0,16942.0,0.5746]
[1673139926660,0.00267427,16943.0,16942.0,0.7482]
[1673139926661,0.05167427,16943.0,16942.0,0.7482]
[1673139926917,0.00267427,16943.0,16942.0,0.7482]
[1673139927177,0.00267427,16943.0,16942.0,0.7512]
[1673139927178,0.05167427,16943.0,16942.0,0.7512]
[1673139927678,0.05167427,16943.0,16942.0,0.7542]
[1673139927679,0.10067427,16943.0,16942.0,0.7542]
[1673139927935,0.00267427,16943.0,16942.0,0.7482]
[1673139928221,0.00667427,16943.0,16942.0,0.44250528]
[1673139928466,0.00667427,16943.0,16942.0,0.4422]
[1673139929234,0.00667427,16943.0,16942.0,0.44250528]
[1673139932727,0.00667427,16943.0,16942.0,0.26790528]
[1673139932973,0.00667427,16943.0,16942.0,0.2676]
[1673139934028,0.00667427,16943.0,16942.0,0.26824198]
[1673139936008,0.00667427,16943.0,16942.0,0.91767838]
[1673139937017,0.00667427,16943.0,16942.0,1.09227838]
[1673139938318,0.00150684,16943.0,16942.0,1.09227838]
[1673139938568,0.00150684,16943.0,16942.0,1.68252738]
[1673139940930,0.00150684,16943.0,16942.0,1.50792738]
[1673139948773,0.00150684,16943.0,16942.0,1.5072854]
[1673139950104,0.00150684,16943.0,16942.0,1.50851914]
[1673139950891,0.00144684,16943.0,16942.0,1.50851914]
[1673139953161,0.00138684,16943.0,16942.0,1.50851914]
[1673139955026,0.00132684,16943.0,16942.0,1.50851914]
[1673139960388,0.00132684,16943.0,16942.0,2.09876814]
[1673139960652,1e-08,16943.0,16942.0,2.09876814]
[1673139960910,1e-08,16943.0,16942.0,3.41365844]
[1673139961166,1e-08,16943.0,16942.0,4.02153127]
[1673139961420,1e-08,16943.0,16942.0,4.0215315]
[1673139961670,1e-08,16943.0,16942.0,3.14929026]
[1673139961949,1e-08,16943.0,16942.0,2.54141626]
[1673139962526,1e-08,16943.0,16942.0,2.27561724]
[1673139962966,1e-08,16943.0,16942.0,4.37591422]
[1673139963213,1e-08,16943.0,16942.0,4.19906512]
[1673139963464,1e-08,16943.0,16942.0,4.02546512]
[1673139964482,1e-08,16943.0,16942.0,4.20247178]
[1673139964766,1e-08,16943.0,16942.0,3.84809701]
[1673139965091,1e-08,16943.0,16942.0,4.72546512]
[1673139967140,1e-08,16943.0,16942.0,4.90249891]
[1673139967398,1e-08,16943.0,16942.0,4.25182877]
[1673139967651,1e-08,16943.0,16942.0,2.15153179]
[1673139968182,1e-08,16943.0,16942.0,2.41733081]
[1673139968684,1e-08,16943.0,16942.0,2.15153179]
[1673139968936,1e-08,16943.0,16942.0,1.45153179]
[1673139969719,1e-08,16943.0,16942.0,1.45272019]
[1673139971297,1e-08,16943.0,16942.0,2.59078054]
[1673139971588,1e-08,16943.0,16942.0,2.59078315]
[1673139971820,1e-08,16943.0,16942.0,3.19865715]
[1673139973137,1e-08,16943.0,16942.0,2.06059419]
[1673139973409,1e-08,16943.0,16942.0,1.45272019]
[1673139973572,0.17625592,16944.0,16943.0,5.999e-05]
[1673139974392,0.17625592,16944.0,16943.0,0.65121695]
[1673139975168,0.17625592,16944.0,16943.0,1.24143095]
[1673139975451,0.00081007,16944.0,16943.0,1.44146474]
[1673139976798,0.00081007,16944.0,16943.0,2.00574495]
[1673139977056,0.00081007,16944.0,16943.0,2.79065274]
[1673139977314,0.00081007,16944.0,16943.0,2.81365274]
[1673139977569,0.00081007,16944.0,16943.0,2.79065274]
[1673139978172,0.00081007,16944.0,16943.0,2.81365274]
[1673139978337,0.00481007,16944.0,16943.0,2.94365274]
[1673139978595,0.00481007,16944.0,16943.0,2.35343874]
[1673139978849,0.00081007,16944.0,16943.0,2.02340495]
[1673139979630,0.00081007,16944.0,16943.0,2.20043874]
[1673139979927,0.00081007,16944.0,16943.0,2.79065274]
[1673139980430,0.00581007,16944.0,16943.0,2.91965274]
[1673139980969,0.00581007,16944.0,16943.0,3.61965274]
[1673139982020,0.00581007,16944.0,16943.0,3.44261895]
[1673139984330,0.00581007,16944.0,16943.0,4.20986674]
[1673139985340,0.00581007,16944.0,16943.0,3.55870978]
[1673139985590,0.00581007,16944.0,16943.0,5.83052297]
[1673139986103,0.00581007,16944.0,16943.0,5.35308709]
[1673139986859,0.00591836,16945.0,16944.0,1.13575871]
[1673139987117,0.00591836,16945.0,16944.0,3.13013371]
[1673139987951,0.00991836,16945.0,16944.0,3.22913371]
[1673139989478,0.00991836,16945.0,16944.0,3.23061211]
[1673139991982,0.00991836,16945.0,16944.0,2.71511671]
[1673139992408,0.00991836,16945.0,16944.0,2.01511671]
[1673139992990,0.00991836,16945.0,16944.0,2.62299071]
[1673139993229,0.00991836,16945.0,16944.0,2.01511671]
[1673139993736,0.00991836,16945.0,16944.0,2.62299071]
[1673139995290,0.00991836,16945.0,16944.0,2.62306462]
[1673139997599,0.00755437,16946.0,16945.0,1.13946007]
[1673139997874,0.00755437,16946.0,16945.0,2.43371907]
[1673139998386,0.00755437,16946.0,16945.0,2.31974807]
[1673139998645,0.00755437,16946.0,16945.0,2.92762207]
[1673139999209,0.00755437,16946.0,16945.0,2.95762207]
[1673140000843,0.00755437,16946.0,16945.0,2.34974807]
[1673140001092,0.00755437,16946.0,16945.0,2.95762207]
[1673140002050,0.00755437,16946.0,16945.0,4.24776607]
[1673140008021,0.00755437,16946.0,16945.0,3.54776607]
[1673140009123,0.00755437,16946.0,16945.0,4.24776607]
[1673140010152,0.00755437,16946.0,16945.0,3.65762207]
[1673140010966,0.00755437,16946.0,16945.0,3.04974807]
[1673140011497,0.00755437,16946.0,16945.0,3.65762207]
[1673140014703,0.00255437,16946.0,16945.0,3.65762207]
[1673140015774,0.0022191,16946.0,16945.0,3.65762207]
[1673140016548,3.22166264,16948.0,16946.0,0.07505247]
[1673140016804,0.61326264,16948.0,16946.0,1.63696807]
[1673140017178,0.35004585,16948.0,16946.0,1.63696807]
[1673140018110,0.35004585,16948.0,16946.0,2.22707707]
[1673140018367,0.39804585,16948.0,16946.0,2.23507707]
[1673140019147,0.66126264,16948.0,16946.0,2.23507707]
[1673140019404,0.39804585,16948.0,16946.0,2.23507707]
[1673140019669,0.39804585,16948.0,16946.0,1.83507707]
[1673140020749,0.66126264,16948.0,16946.0,1.83507707]
[1673140021295,0.65693464,16948.0,16946.0,1.83507707]
[1673140022089,0.65693464,16948.0,16947.0,0.67234885]
[1673140022379,0.39371785,16948.0,16947.0,0.67234885]
[1673140023715,0.34571785,16948.0,16947.0,0.67234885]
[1673140023969,0.39371785,16948.0,16947.0,0.68034885]
[1673140026129,0.58188217,16948.0,16947.0,0.68034885]
[1673140027200,0.31866538,16948.0,16947.0,0.68034885]
[1673140029265,0.22344585,16948.0,16947.0,0.68034885]
[1673140029531,0.22344585,16948.0,16947.0,0.68042274]
[1673140030818,0.22344585,16948.0,16947.0,1.27049674]
[1673140033418,0.48666264,16948.0,16947.0,1.27049674]
[1673140033697,0.22344585,16948.0,16947.0,1.27049674]
[1673140033960,0.48666264,16948.0,16947.0,1.27049674]
[1673140035547,0.48666264,16948.0,16947.0,1.27042285]
[1673140036657,0.48666264,16948.0,16947.0,0.68034885]
[1673140037988,0.60538324,16948.0,16947.0,0.68034885]
[1673140039030,0.60538324,16948.0,16947.0,0.68042274]
[1673140039282,0.60538324,16948.0,16947.0,0.68034885]
[1673140046837,0.60538324,16948.0,16947.0,0.68042274]
[1673140048155,0.34216645,16948.0,16947.0,0.68042274]
[1673140049736,0.34216645,16948.0,16947.0,1.38042274]
[1673140053966,0.34216645,16948.0,16947.0,1.55736163]
[1673140054219,0.34216645,16948.0,16947.0,1.38042274]
[1673140054720,0.34216645,16948.0,16947.0,1.97049674]
[1673140055467,0.34216645,16948.0,16947.0,1.27049674]
[1673140056498,0.34216645,16948.0,16947.0,1.97049674]
[1673140057968,0.34216645,16948.0,16947.0,2.14743563]
[1673140058473,0.34216645,16948.0,16947.0,1.97049674]
[1673140058732,0.34216645,16948.0,16947.0,2.14743563]
[1673140059240,0.1667206,16948.0,16947.0,2.14743563]
[1673140059457,0.34216645,16948.0,16947.0,2.14743563]
[1673140061503,0.1667206,16948.0,16947.0,2.14743563]
[1673140061715,0.1667206,16948.0,16947.0,2.75530963]
[1673140062238,0.1667206,16948.0,16947.0,2.14743563]
[1673140062771,0.1667206,16948.0,16947.0,1.44743563]
[1673140063021,0.1187206,16948.0,16947.0,1.43943563]
[1673140063280,0.1217206,16948.0,16947.0,1.53843563]
[1673140063813,0.1217206,16948.0,16947.0,2.23843563]
[1673140065279,0.1217206,16948.0,16947.0,2.84630963]
[1673140066274,0.1217206,16948.0,16947.0,3.43638363]
[1673140066529,0.1217206,16948.0,16947.0,2.82850963]
[1673140067039,0.1217206,16948.0,16947.0,3.43638363]
[1673140067565,0.1217206,16948.0,16947.0,3.70218265]
[1673140067820,0.1217206,16948.0,16947.0,2.82850963]
[1673140068295,0.1217206,16948.0,16947.0,3.43638363]
[1673140069792,0.1217206,16948.0,16947.0,2.12850963]
[1673140070563,0.1217206,16948.0,16947.0,2.82850963]
[1673140070813,0.1217206,16948.0,16947.0,3.43638363]
[1673140074220,0.1217206,16948.0,16947.0,2.82850963]
[1673140075169,0.1217206,16948.0,16947.0,3.43638363]
[1673140075611,0.1217206,16948.0,16947.0,2.82850963]
[1673140076523,0.1217206,16948.0,16947.0,2.73638363]
[1673140077573,0.1217206,16948.0,16947.0,2.82850963]
[1673140078224,0.1217206,16948.0,16947.0,3.43638363]
[1673140079178,0.1217206,16948.0,16947.0,2.82850963]
[1673140079674,0.1217206,16948.0,16947.0,3.43638363]
[1673140083864,0.1217206,16948.0,16947.0,2.73638363]
[1673140084135,0.1217206,16948.0,16947.0,2.12850963]
[1673140084657,0.1217206,16948.0,16947.0,2.82850963]
[1673140084901,0.1217206,16948.0,16947.0,3.43638363]
[1673140086161,0.1217206,16948.0,16947.0,2.82850963]
[1673140086717,0.1217206,16948.0,16947.0,3.43638363]
[1673140087686,0.1217206,16948.0,16947.0,2.82850963]
[1673140088457,0.29716645,16948.0,16947.0,1.56601289]
[1673140088716,1.16825724,16948.0,16947.0,0.68895932]
[1673140088984,1.52446343,16948.0,16947.0,0.68895932]
[1673140089275,1.52207788,16948.0,16947.0,0.099]
[1673140089527,1.69755812,16948.0,16947.0,0.099]
[1673140090063,1.08968412,16948.0,16947.0,0.099]
[1673140090525,0.7383065,16948.0,16947.0,0.099]
[1673140099196,1.69883546,16948.0,16947.0,0.099]
[1673140099488,1.1731385,16948.0,16947.0,0.099]
[1673140100232,0.7383065,16948.0,16947.0,0.099]
[1673140101513,1.3461805,16948.0,16947.0,0.099]
[1673140103056,1.23378971,16948.0,16947.0,0.099]
[1673140103330,1.58644467,16948.0,16947.0,0.099]
[1673140103599,1.52199898,16948.0,16947.0,0.099]
[1673140105503,2.11203898,16948.0,16947.0,0.099]
[1673140108419,2.28872171,16948.0,16947.0,0.099]
[1673140108895,2.11203898,16948.0,16947.0,0.099]
[1673140109420,2.90393278,16948.0,16947.0,0.09891106]
[1673140109688,3.34474134,16948.0,16947.0,0.09891106]
[1673140110414,2.87763812,16948.0,16947.0,0.09891106]
[1673140111389,3.14261887,16948.0,16947.0,0.09891106]
[1673140111874,2.70181031,16948.0,16947.0,0.09891106]
[1673140112088,3.14261887,16948.0,16947.0,0.09891106]
[1673140112343,2.70181031,16948.0,16947.0,0.09891106]
[1673140112590,3.14261887,16948.0,16947.0,0.09891106]
[1673140112839,3.51637704,16948.0,16947.0,0.09891106]
[1673140113357,3.25139629,16948.0,16947.0,0.09891106]
[1673140114651,2.87763812,16948.0,16947.0,0.09891106]
[1673140117661,3.14258721,16948.0,16947.0,0.09891106]
[1673140117904,2.70177865,16948.0,16947.0,0.09891106]
[1673140118380,3.14258721,16948.0,16947.0,0.09891106]
[1673140118707,2.87763812,16948.0,16947.0,0.09891106]
[1673140119161,2.70313812,16948.0,16947.0,0.09891106]
[1673140120483,2.96809844,16948.0,16947.0,0.09891106]
[1673140120734,2.70313812,16948.0,16947.0,0.09891106]
[1673140121396,2.96809752,16948.0,16947.0,0.09891106]
[1673140121645,2.52728896,16948.0,16947.0,0.09891106]
[1673140123689,2.70396208,16948.0,16947.0,0.09891106]
[1673140123937,2.35130712,16948.0,16947.0,0.09891106]
[1673140124451,2.70396208,16948.0,16947.0,0.09891106]
[1673140124957,2.35130712,16948.0,16947.0,0.09891106]
[1673140125334,1.74343312,16948.0,16947.0,0.09891106]
[1673140125741,1.91941496,16948.0,16947.0,0.09891106]
[1673140126240,2.52728896,16948.0,16947.0,0.09891106]
[1673140126512,2.70313812,16948.0,16947.0,0.09891106]
[1673140126730,3.07685416,16948.0,16947.0,0.09891106]
[1673140127748,2.70313812,16948.0,16947.0,0.09891106]
[1673140128766,3.17024134,16948.0,16947.0,0.09891106]
[1673140129100,2.81758638,16948.0,16947.0,0.09891106]
[1673140129316,2.55037782,16948.0,16947.0,0.09891106]
[1673140130557,3.14041782,16948.0,16947.0,0.09891106]
[1673140130804,3.66891927,16948.0,16947.0,0.09891106]
[1673140131069,4.09530748,16948.0,16947.0,0.09891106]
[1673140131783,0.4,16947.0,16944.0,0.64895528]
[1673140132039,0.17675954,16945.0,16944.0,0.64895528]
[1673140132316,0.78463354,16945.0,16944.0,0.64895528]
[1673140132570,0.44189884,16946.0,16944.0,0.64895528]
[1673140133087,0.10941535,16945.0,16944.0,0.64895528]
[1673140133612,0.10941535,16945.0,16944.0,0.64889063]
[1673140134366,0.11341535,16945.0,16944.0,0.75589063]
[1673140135401,0.11341535,16945.0,16944.0,1.63282952]
[1673140137913,0.11341535,16945.0,16944.0,1.45589063]
[1673140138163,0.11341535,16945.0,16944.0,1.63282952]
[1673140139449,0.11341535,16945.0,16944.0,1.63363913]
[1673140140234,0.11341535,16945.0,16944.0,1.63282952]
[1673140141520,0.11341535,16945.0,16944.0,0.93282952]
[1673140142490,0.11341535,16945.0,16944.0,1.63282952]
[1673140143244,0.11341535,16945.0,16944.0,2.22300852]
[1673140148270,0.11341535,16945.0,16944.0,1.52300852]
[1673140149272,0.11341535,16945.0,16944.0,2.22300852]
[1673140155333,0.11341535,16945.0,16944.0,1.52300852]
[1673140156369,0.11341535,16945.0,16944.0,2.22300852]
[1673140156627,0.11341535,16945.0,16944.0,2.83088252]
[1673140156888,0.11341535,16945.0,16944.0,2.22300852]
[1673140162445,0.11341535,16945.0,16944.0,1.52300852]
[1673140163472,0.11341535,16945.0,16944.0,2.83088252]
[1673140164475,0.11341535,16945.0,16944.0,3.09668154]
[1673140165719,0.11341535,16945.0,16944.0,2.48880754]
[1673140169254,0.11341535,16945.0,16944.0,2.22300852]
[1673140169423,0.11341535,16945.0,16944.0,1.52300852]
[1673140170366,0.11341535,16945.0,16944.0,3.36093137]
[1673140170646,0.11341535,16945.0,16944.0,3.96880537]
[1673140175077,0.11341535,16945.0,16944.0,3.95880537]
[1673140179644,0.11341535,16945.0,16944.0,3.25880537]
[1673140179898,0.11341535,16945.0,16944.0,2.65093137]
[1673140180896,0.11341535,16945.0,16944.0,3.35093137]
[1673140181134,0.11341535,16945.0,16944.0,3.95880537]
[1673140182882,0.11341535,16945.0,16944.0,3.46490937]
[1673140183136,0.11316828,16945.0,16944.0,3.35093137]
[1673140183874,0.11316828,16945.0,16944.0,3.95880537]
[1673140186247,0.11316828,16945.0,16944.0,3.35093137]
[1673140186754,0.11316828,16945.0,16944.0,2.64593137]
[1673140187751,0.11316828,16945.0,16944.0,3.95380537]
[1673140188777,0.11316828,16945.0,16944.0,3.34593137]
[1673140191458,0.11251828,16945.0,16944.0,3.34593137]
[1673140192462,0.11251828,16945.0,16944.0,3.34674098]
[1673140192706,0.11241861,16945.0,16944.0,3.34674098]
[1673140193783,0.11241861,16945.0,16944.0,2.64674098]
[1673140194790,0.11241861,16945.0,16944.0,3.34674098]
[1673140195034,0.11241861,16945.0,16944.0,3.95461498]
[1673140195279,0.11241861,16945.0,16944.0,3.34674098]
[1673140200876,0.11241861,16945.0,16944.0,2.64674098]
[1673140201333,0.11241861,16945.0,16944.0,3.25461498]
[1673140201581,0.11241861,16945.0,16944.0,3.24780598]
[1673140202158,0.11241861,16945.0,16944.0,3.33993198]
[1673140202383,0.11241861,16945.0,16944.0,3.94780598]
[1673140203164,0.28917815,16945.0,16944.0,3.94699637]
[1673140203428,0.11241861,16945.0,16944.0,3.94699637]
[1673140203700,0.28917815,16945.0,16944.0,3.94699637]
[1673140204183,0.28917815,16945.0,16944.0,2.46699854]
[1673140206753,0.28917815,16945.0,16944.0,2.20119952]
[1673140206993,0.28917815,16945.0,16944.0,1.50119952]
[1673140207936,0.28917815,16945.0,16944.0,2.10907352]
[1673140214094,0.28917815,16945.0,16944.0,1.50119952]
[1673140214567,0.28917815,16945.0,16944.0,2.10907352]
[1673140216811,0.28917815,16945.0,16944.0,1.50119952]
[1673140218984,0.28917815,16945.0,16944.0,2.10907352]
[1673140220907,0.28917815,16945.0,16944.0,1.50119952]
[1673140222583,0.28917815,16945.0,16944.0,2.10907352]
[1673140222842,0.11241861,16945.0,16944.0,4.12444729]
[1673140223815,0.11241861,16945.0,16944.0,4.71462629]
[1673140226507,0.11241861,16945.0,16944.0,4.53736487]
[1673140234248,0.11241861,16945.0,16944.0,3.665226]
[1673140234769,0.11241861,16945.0,16944.0,3.057352]
[1673140235025,0.11241861,16945.0,16944.0,2.79155298]
[1673140235302,0.11241861,16945.0,16944.0,3.92947494]
[1673140235564,0.11241861,16945.0,16944.0,4.53734894]
[1673140235810,0.11241861,16945.0,16944.0,3.83734894]
[1673140236877,0.11241861,16945.0,16944.0,4.53734894]
[1673140238521,0.11241861,16945.0,16944.0,3.94716994]
[1673140242385,0.11241861,16945.0,16944.0,3.075047]
[1673140243644,0.11241861,16945.0,16944.0,2.80924798]
[1673140243895,0.11241861,16945.0,16944.0,3.075047]
[1673140249534,0.11241861,16945.0,16944.0,2.375047]
[1673140250538,0.11241861,16945.0,16944.0,2.467173]
[1673140250785,0.11241861,16945.0,16944.0,3.075047]
[1673140251048,0.11241861,16945.0,16944.0,3.94717514]
[1673140256484,0.11241861,16945.0,16944.0,3.24717514]
[1673140257423,0.11241861,16945.0,16944.0,3.94717514]
[1673140259358,0.11241861,16945.0,16944.0,3.94681314]
[1673140260151,0.11241861,16945.0,16944.0,4.53699214]
[1673140260401,0.11241861,16945.0,16944.0,4.71425356]
[1673140270941,0.11241861,16945.0,16944.0,5.15697]
[1673140271201,0.67957673,16947.0,16945.0,0.4]
[1673140271461,0.44189884,16947.0,16946.0,0.113963]
[1673140271723,0.44189884,16947.0,16945.0,0.57711203]
[1673140271981,0.44189884,16947.0,16946.0,0.607874]
[1673140272232,0.44189884,16947.0,16945.0,1.14604926]
[1673140272748,0.47889884,16947.0,16945.0,0.74704926]
[1673140273008,0.47889884,16947.0,16946.0,0.607874]
[1673140273273,0.51589884,16947.0,16946.0,0.001]
[1673140273593,0.47889884,16947.0,16945.0,0.74604926]
[1673140273779,0.51589884,16947.0,16945.0,0.74704926]
[1673140274047,0.51589884,16947.0,16945.0,1.01271737]
[1673140274309,0.44189884,16947.0,16945.0,1.01171737]
[1673140274575,0.47889884,16947.0,16946.0,0.608874]
[1673140274849,0.47889884,16947.0,16946.0,0.001]
[1673140275101,0.47889884,16947.0,16946.0,0.48445833]
[1673140275345,0.17675954,16947.0,16946.0,0.48345833]
[1673140275611,0.21375954,16947.0,16946.0,1.09133233]
[1673140275880,0.17675954,16947.0,16946.0,1.09133233]
[1673140276131,0.17675954,16947.0,16946.0,1.09233233]
[1673140276132,0.037,16947.0,16946.0,1.09233233]
[1673140276397,0.21375954,16947.0,16946.0,1.09233233]
[1673140276903,0.037,16947.0,16946.0,1.26944436]
[1673140277695,0.037,16947.0,16946.0,1.09226112]
[1673140282268,0.037,16947.0,16946.0,1.68237012]
[1673140282788,0.037,16947.0,16946.0,1.07449612]
[1673140283817,0.037,16947.0,16946.0,1.68237012]
[1673140293839,0.21375954,16947.0,16946.0,1.68237012]
[1673140294373,0.037,16947.0,16946.0,1.07449612]
[1673140294813,0.21375954,16947.0,16946.0,1.07449612]
[1673140295315,0.037,16947.0,16946.0,1.07449612]
[1673140296492,0.21375954,16947.0,16946.0,1.07449612]
[1673140302898,0.47889884,16947.0,16946.0,1.07449612]
[1673140303170,0.47889884,16947.0,16946.0,0.48438712]
[1673140303171,0.21375954,16947.0,16946.0,0.48438712]
[1673140303432,0.47889884,16947.0,16946.0,0.48438712]
[1673140311168,0.65565837,16947.0,16946.0,0.48438712]
[1673140313138,0.80790845,16947.0,16946.0,0.48438712]
[1673140313665,0.98477723,16947.0,16946.0,0.48438712]
[1673140313892,0.98477642,16947.0,16946.0,0.48438712]
[1673140314115,0.80790845,16947.0,16946.0,0.48438712]
[1673140314342,0.98477609,16947.0,16946.0,0.48438712]
[1673140314595,0.98477948,16947.0,16946.0,0.48438712]
[1673140314842,0.63126041,16947.0,16946.0,0.48438712]
[1673140319203,0.63126041,16947.0,16946.0,0.001]
[1673140319455,0.80790845,16947.0,16946.0,0.001]
[1673140319712,1.41578245,16947.0,16946.0,0.001]
[1673140319968,0.80790845,16947.0,16946.0,0.001]
[1673140327608,1.41578245,16947.0,16946.0,0.001]
[1673140328874,0.80790845,16947.0,16946.0,0.001]
[1673140330114,0.98475601,16947.0,16946.0,0.001]
[1673140330350,0.80790845,16947.0,16946.0,0.001]
[1673140330802,0.98475698,16947.0,16946.0,0.001]
[1673140331593,0.98476399,16947.0,16946.0,0.001]
[1673140332058,1.59263799,16947.0,16946.0,0.001]
[1673140334968,0.98476399,16947.0,16946.0,0.001]
[1673140335218,1.59263799,16947.0,16946.0,0.001]
[1673140337078,0.98476399,16947.0,16946.0,0.001]
[1673140340326,1.59263799,16947.0,16946.0,0.001]
[1673140341547,0.98476399,16947.0,16946.0,0.001]
[1673140349312,1.59263799,16947.0,16946.0,0.001]
[1673140349850,0.98476399,16947.0,16946.0,0.001]
[1673140350100,0.98476399,16947.0,16946.0,0.67172608]
[1673140354330,0.98476399,16947.0,16946.0,0.67172608]
[1673140355069,1.59263799,16947.0,16946.0,0.001]
[1673140356084,0.98476399,16947.0,16946.0,0.001]
[1673140358132,1.59263799,16947.0,16946.0,0.001]
[1673140359524,0.98476399,16947.0,16946.0,0.001]
[1673140359988,1.59263799,16947.0,16946.0,0.001]
[1673140360989,0.98476399,16947.0,16946.0,0.001]
[1673140361463,1.59263799,16947.0,16946.0,0.001]
[1673140361953,0.98476399,16947.0,16946.0,0.001]
[1673140364207,1.59263799,16947.0,16946.0,0.001]
[1673140364687,2.03453683,16947.0,16946.0,0.001]
[1673140365243,1.76939753,16947.0,16946.0,0.001]
[1673140365978,2.03484964,16947.0,16946.0,0.001]
[1673140366445,1.5929508,16947.0,16946.0,0.001]
[1673140372809,1.76939753,16947.0,16946.0,0.001]
[1673140373303,1.41587846,16947.0,16946.0,0.001]
[1673140374018,1.41587846,16947.0,16946.0,0.00089935]
[1673140374776,0.80800446,16947.0,16946.0,0.00089935]
[1673140375028,1.7697277,16947.0,16946.0,0.00089935]
[1673140375267,1.41587846,16947.0,16946.0,0.00089935]
[1673140375511,1.76972767,16947.0,16946.0,0.00089935]
[1673140375754,1.76972767,16947.0,16946.0,0.0004337]
[1673140376012,1.76962913,16947.0,16946.0,0.0004337]
[1673140378023,1.41577992,16947.0,16946.0,0.0004337]
[1673140378275,0.80790592,16947.0,16946.0,0.0004337]
[1673140378532,1.41577992,16947.0,16946.0,0.0004337]
[1673140379040,1.44354929,16947.0,16946.0,0.0004337]
[1673140379782,0.83567529,16947.0,16946.0,0.0004337]
[1673140380322,1.44354929,16947.0,16946.0,0.0004337]
[1673140380840,0.83567529,16947.0,16946.0,0.0004337]
[1673140381353,1.18943078,16947.0,16946.0,0.0004337]
[1673140388456,1.79730478,16947.0,16946.0,0.0004337]
[1673140389499,1.18943078,16947.0,16946.0,0.0004337]
[1673140389748,1.01281629,16947.0,16946.0,0.0004337]
[1673140389997,1.45471513,16947.0,16946.0,0.0004337]
[1673140390258,1.01281629,16947.0,16946.0,0.0004337]
[1673140390530,1.45471513,16947.0,16946.0,0.0004337]
[1673140390787,1.01281629,16947.0,16946.0,0.0004337]
[1673140391055,1.45471513,16947.0,16946.0,0.0004337]
[1673140391354,1.45471761,16947.0,16946.0,0.0004337]
[1673140391599,1.18943078,16947.0,16946.0,0.0004337]
[1673140392675,1.45472107,16947.0,16946.0,0.0004337]
[1673140392928,1.01282223,16947.0,16946.0,0.0004337]
[1673140398770,0.83596669,16947.0,16946.0,0.0004337]
[1673140399697,0.83596669,16947.0,16946.0,0.00034671]
[1673140400904,1.27786553,16947.0,16946.0,0.00034671]
[1673140402128,1.27792322,16947.0,16946.0,0.00034671]
[1673140402613,0.83602438,16947.0,16946.0,0.00034671]
[1673140403134,1.27792322,16947.0,16946.0,0.00034671]
[1673140404001,0.83602438,16947.0,16946.0,0.00034671]
[1673140404773,1.27792322,16947.0,16946.0,0.00034671]
[1673140405022,1.01257524,16947.0,16946.0,0.00034671]
[1673140416851,1.01246509,16947.0,16946.0,0.00034671]
[1673140417597,1.62033909,16947.0,16946.0,0.00034671]
[1673140418713,1.01246509,16947.0,16946.0,0.00034671]
[1673140420742,1.62033909,16947.0,16946.0,0.00034671]
[1673140427784,1.01246509,16947.0,16946.0,0.00034671]
[1673140428049,1.62033909,16947.0,16946.0,0.00034671]
[1673140429777,1.01246509,16947.0,16946.0,0.00034671]
[1673140430489,1.62033909,16947.0,16946.0,0.00034671]
[1673140431996,1.01246509,16947.0,16946.0,0.00034671]
[1673140434499,1.62033909,16947.0,16946.0,0.00034671]
[1673140436401,1.01246509,16947.0,16946.0,0.00034671]
[1673140436624,1.62033909,16947.0,16946.0,0.00034671]
[1673140437067,1.01246509,16947.0,16946.0,0.00034671]
[1673140437566,1.62033909,16947.0,16946.0,0.00034671]
[1673140437837,1.62033909,16947.0,16946.0,0.00023071]
[1673140441494,0.3,16946.0,16945.0,1.1695125]
[1673140441763,1.1773569,16946.0,16945.0,1.1695125]
[1673140441981,0.7425249,16946.0,16945.0,1.1695125]
[1673140442719,0.7425249,16946.0,16945.0,1.8695125]
[1673140442943,0.79628039,16946.0,16945.0,0.7]
[1673140443165,0.61927043,16946.0,16945.0,0.7]
[1673140443422,0.44252223,16946.0,16945.0,0.7]
[1673140443638,0.44352223,16946.0,16945.0,0.731]
[1673140443934,0.44352223,16946.0,16945.0,0.031]
[1673140444419,0.44252223,16946.0,16944.0,2.15989956]
[1673140444658,0.44352223,16946.0,16945.0,0.031]
[1673140444906,0.44252223,16946.0,16944.0,2.15989156]
[1673140445171,0.44352223,16946.0,16945.0,0.031]
[1673140445420,0.44252223,16946.0,16944.0,2.15989456]
[1673140445673,0.44552223,16946.0,16944.0,2.26489456]
[1673140446133,0.44552223,16946.0,16945.0,0.61296768]
[1673140446384,0.44252223,16946.0,16945.0,1.22084168]
[1673140446668,0.44352223,16946.0,16945.0,2.09795371]
[1673140447162,0.44652223,16946.0,16945.0,2.09795371]
[1673140447418,0.44252223,16946.0,16945.0,2.68809771]
[1673140449676,0.17700729,16946.0,16945.0,2.68809771]
[1673140451076,0.17700729,16946.0,16945.0,3.27824171]
[1673140452257,0.17700729,16946.0,16945.0,3.54390982]
[1673140453001,0.62254168,16947.0,16945.0,3.54390982]
[1673140453244,0.62254168,16947.0,16946.0,0.113924]
[1673140453470,0.62254168,16947.0,16945.0,2.93601482]
[1673140454236,0.65954168,16947.0,16945.0,2.93701482]
[1673140454974,0.65954168,16947.0,16946.0,0.7]
[1673140455490,0.83628988,16947.0,16946.0,0.7]
[1673140455775,0.79928988,16947.0,16946.0,0.7]
[1673140456273,0.80028988,16947.0,16946.0,0.731]
[1673140456528,0.80028988,16947.0,16946.0,0.031]
[1673140459823,1.40816388,16947.0,16946.0,0.031]
[1673140461375,0.80028988,16947.0,16946.0,0.031]